[Event "ChessKid Cup Div-II 2023"]
[Site "Online"]
[Date "2023.05.23"]
[Round "51.1"]
[White "Rasulov, Vugar"]
[Black "Le, Tuan Minh"]
[Result "0-1"]
[ECO "C01"]
[WhiteElo "2523"]
[BlackElo "2542"]
[Annotator "TA"]
[PlyCount "114"]
[EventDate "2023.05.21"]
[EventType "k.o."]
[EventCountry "NET"]
[SourceTitle "playchess.com"]
[Source "ChessBase"]
[SourceQuality "1"]
[TimeControl "900+3"]

{[%evp 11,114,0,10,0,2,0,33,11,15,0,24,16,21,0,0,0,0,-8,0,0,37,8,17,12,16,13,9,18,39,45,42,34,52,44,57,36,21,18,20,0,0,0,0,0,0,0,0,0,0,0,0,-39,-27,-45,-45,-43,-7,-26,0,0,0,-3,0,0,0,0,0,0,0,0,-2,-6,0,0,0,0,0,-12,-12,-122,-117,-130,-126,-119,-119,-139,-139,-139,-72,-95,-81,-106,-95,-29977,-12,-29975,-29976,-29975,-29977,-29976,-29977,-29979,-29980,-29980,-29980]} 1. c4 {[%emt 0:00:04]} c6 {[%emt 0:00:09]} 2. e4 {[%emt 0:00:04]} e6 {[%emt 0:00:08]} 3. Nc3 {[%emt 0:00:26]} d5 {[%emt 0:00:06]} 4. d4 {[%emt 0:00:09]} Bb4 {[%emt 0:00:33]} 5. exd5 {[%emt 0:00:31]} exd5 {[%emt 0:00:09]} 6. Nf3 {[%emt 0:00:05]} Nf6 {[%emt 0:00:05]} 7. Be2 {[%emt 0:00:12] C01: French: Exchange Variation.} O-O {[%emt 0:00:47]} 8. O-O {[%emt 0:00:02]} h6 {[%emt 0:00:01]} 9. Bf4 {[%emt 0:01:05] [#] White is slightly better.} Re8 $146 {[%emt 0:00:13]} ({Predecessor:} 9... Bf5 10. Qb3 Qe7 11. Rfe1 Bxc3 12. bxc3 Be4 13. c5 Qd7 14. Bd6 Re8 15. Ne5 Qc8 {1-0 Ibarra,C (1435)-Sanchez Negreiros,J (1119) Pan American-ch U10 2019 (9)}) 10. Rc1 {[%emt 0:00:16]} Bg4 {[%emt 0:01:55]} 11. cxd5 {[%emt 0:00:44]} Nxd5 {[%emt 0:00:40]} 12. Bg3 {[%emt 0:00:05]} (12. Nxd5 {looks sharper.} Qxd5 13. Bc4 Bxf3 14. Qb3) 12... Be6 {[%emt 0:00:16]} 13. Bd3 {[%emt 0:01:03]} Nd7 {[%emt 0:00:11]} 14. Bb1 {[%emt 0:00:12]} Nf8 {[%emt 0:00:36]} 15. Ne5 {[%emt 0:00:33]} Nf6 {[%emt 0:00:53]} 16. Re1 {[%emt 0:00:47]} Qb6 {[%emt 0:00:39]} 17. a3 {[%emt 0:00:48] Black must now prevent Na4.} Bxc3 {[%emt 0:00:37]} 18. bxc3 {[%emt 0:00:00]} c5 {[%emt 0:00:00]} 19. Bd3 {[%emt 0:02:43]} cxd4 {[%emt 0:00:18]} 20. Rb1 {[%emt 0:00:03]} Qa5 {[%emt 0:00:05]} 21. cxd4 {[%emt 0:00:03]} (21. Rxb7 dxc3 22. Qc1 Rac8 $15) 21... Qxa3 {[%emt 0:02:39]} 22. Rxb7 {[%emt 0:00:18]} Rac8 {[%emt 0:00:32]} 23. Qa1 {[%emt 0:00:57]} Qxa1 {[%emt 0:00:50]} 24. Rxa1 {[%emt 0:00:00][%cal Od3b5]} Red8 {[%emt 0:00:02]} 25. Nf3 {[%emt 0:00:36]} (25. Raxa7 $2 {is the wrong capture.} Rc1+ 26. Bf1 Rxd4 $19) 25... Bd5 {[%emt 0:01:16]} 26. Rbxa7 {[%emt 0:00:03]} Bxf3 {[%emt 0:00:00]} 27. gxf3 {[%emt 0:00:00]} Rxd4 {[%emt 0:00:00]} 28. Bf5 {[%emt 0:00:16] This pair of bishops is nice.} Rc5 {[%emt 0:00:21]} 29. Bh3 {[%emt 0:00:03]} h5 {[%emt 0:00:25]} 30. R7a6 {[%emt 0:01:32]} Ng6 {[%emt 0:00:11]} 31. Bb8 {[%emt 0:00:21]} Rd3 {[%emt 0:00:30]} 32. Bg2 {[%emt 0:00:26]} Nh4 {[%emt 0:00:13]} 33. f4 {[%emt 0:00:43] Prevents Rg5} Rd2 {[%emt 0:00:22]} (33... Rc2 $5 {[%cal Rh4f3]}) 34. Ba7 {[%emt 0:00:11]} Rb5 {[%emt 0:00:36]} 35. Be3 {[%emt 0:00:01]} Rdb2 {[%emt 0:00:01]} 36. Bf1 {[%emt 0:00:23]} Rb8 {[%emt 0:00:16]} 37. Ra8 {[%emt 0:00:17]} Ng4 {[%emt 0:00:01]} 38. Rxb8+ {[%emt 0:00:12]} Rxb8 {[%emt 0:00:00]} 39. Ba7 {[%emt 0:00:10]} Rb4 {[%emt 0:00:13]} 40. h3 {[%emt 0:00:01]} Nf6 {[%emt 0:00:01][%cal Og7g6]} 41. Be3 {[%emt 0:00:10]} Nd5 {[%emt 0:00:02]} 42. Bd3 {[%emt 0:00:07] White wants to mate with Ra8+.} f5 {[%emt 0:00:07]} 43. Bc5 {[%emt 0:00:15]} Rxf4 {[%emt 0:00:02]} 44. Rd1 {[%emt 0:00:03]} Kh7 {[%emt 0:00:02]} 45. Be2 {[%emt 0:00:02]} (45. Kh2 $11) 45... Nc3 $17 {[%emt 0:00:01][%csl LRd1,LRe2]} 46. Rd2 {[%emt 0:00:04]} Nxe2+ {[%emt 0:00:09]} 47. Rxe2 {[%emt 0:00:01][%mdl 4096] Endgame KRB-KRN} Rc4 {[%emt 0:00:01]} 48. Bd6 {[%emt 0:00:02]} f4 {[%emt 0:00:01] ...Rc1+ is the strong threat.} 49. Kf1 {[%emt 0:00:07]} Kg6 {[%emt 0:00:02]} (49... f3 $142 50. Re5 Nf5) 50. Ra2 {[%emt 0:00:04]} Kf5 {[%emt 0:00:07]} 51. Ra5+ {[%emt 0:00:01] [#]} Ke4 $1 {[%emt 0:00:00]} 52. Rxh5 $2 {[%emt 0:00:07][%mdl 8192] [#]} (52. Be7 $17 Nf5 53. Bg5) 52... Kf3 $2 {[%emt 0:00:01]} 53. Ke1 $2 {[%emt 0:00:01][%mdl 8192]} (53. Rc5 $11 Rxc5 54. Bxc5) 53... Ng2+ {[%emt 0:00:02] Black mates.} 54. Kd2 {[%emt 0:00:02]} Rd4+ {[%emt 0:00:01]} ({Inferior is} 54... Kxf2 55. Bc5+ Kf3 56. Rg5 $17) 55. Kc3 {[%emt 0:00:01]} Rxd6 {[%emt 0:00:00]} 56. Rg5 {[%emt 0:00:00]} Kxf2 {[%emt 0:00:01]} 57. Rxg7 {[%emt 0:00:01]} f3 {[%emt 0:00:01] Weighted Error Value: White=0.36/Black=0.21 (precise)} 0-1

[Event "ChessKid Cup Div-II 2023"]
[Site "Online"]
[Date "2023.05.23"]
[Round "51.2"]
[White "Mamedyarov, Shakhriyar"]
[Black "Kravtsiv, Martyn"]
[Result "1-0"]
[ECO "B06"]
[WhiteElo "2738"]
[BlackElo "2598"]
[Annotator "TA"]
[PlyCount "81"]
[EventDate "2023.05.21"]
[EventType "k.o."]
[EventCountry "NET"]
[SourceTitle "playchess.com"]
[Source "ChessBase"]
[SourceQuality "1"]
[TimeControl "900+3"]

{[%evp 9,81,22,59,49,86,73,100,85,116,78,74,78,85,77,111,70,72,66,68,80,75,93,87,95,89,89,103,68,50,70,69,27,30,37,34,39,41,31,42,22,17,21,65,71,167,91,88,87,82,94,99,83,140,108,137,141,219,195,428,429,463,451,555,516,490,396,390,375,396,396,642,634,699,685]} 1. d4 {[%emt 0:00:03]} g6 {[%emt 0:00:20]} 2. Nf3 {[%emt 0:00:14]} Bg7 {[%emt 0:00:01]} 3. e4 {[%emt 0:00:05]} d6 {[%emt 0:00:02]} 4. Bc4 {[%emt 0:00:02]} a6 {[%emt 0:00:03]} 5. a4 {[%emt 0:00:02]} c6 {[%emt 0:00:10]} 6. Nc3 {[%emt 0:00:07] B06: Modern Defence.} e6 {[%emt 0:00:23]} 7. O-O {[%emt 0:00:17]} Ne7 {[%emt 0:00:04] [#]} 8. Re1 $146 {[%emt 0:00:19] White is better.} ({Predecessor:} 8. Be3 O-O 9. Qd2 Nd7 10. Bh6 d5 11. Bb3 f5 12. Bxg7 Kxg7 13. e5 h6 14. Ne2 {0-1 Sieker,K-Schneider,L GER-ch Seniors 13th 2001 (2)}) 8... O-O {[%emt 0:00:07]} 9. Bf4 {[%emt 0:00:27]} b6 {[%emt 0:00:21][%cal Bb7b6,Bb6b5][%mdl 32]} 10. h4 {[%emt 0:00:22][%cal Bh2h4,Bh4h5][%mdl 32]} Bb7 {[%emt 0:00:03] [#]} 11. h5 $1 {[%emt 0:00:04]} b5 {[%emt 0:00:32]} (11... d5 12. h6) 12. Bd3 {[%emt 0:00:20]} b4 $1 {[%emt 0:00:43]} 13. Ne2 {[%emt 0:00:23]} c5 {[%emt 0:00:05]} 14. c3 {[%emt 0:00:22]} Nbc6 {[%emt 0:00:08]} 15. Qd2 {[%emt 0:01:10]} bxc3 {[%emt 0:00:42]} 16. bxc3 {[%emt 0:00:00]} cxd4 {[%emt 0:00:01]} 17. cxd4 {[%emt 0:00:03]} a5 {[%emt 0:00:02]} 18. Bh6 {[%emt 0:00:16]} (18. hxg6 {simplifies} hxg6 19. Qe3 e5 20. Bg5) 18... Nb4 {[%emt 0:00:02]} 19. Bxg7 {[%emt 0:00:15]} Kxg7 {[%emt 0:00:03]} 20. Ng3 {[%emt 0:00:08]} Ng8 {[%emt 0:00:21]} 21. Bb5 $1 $36 {[%emt 0:00:15][%mdl 2048] White fights for an advantage.} Rc8 {[%emt 0:00:06]} 22. Rac1 {[%emt 0:00:02] Against Nc2} Qe7 {[%emt 0:00:10]} 23. Rxc8 {[%emt 0:00:21]} (23. Qf4 {is more complex.} Nh6 24. Red1 Na2 25. Ra1) 23... Rxc8 {[%emt 0:00:03]} 24. Rc1 {[%emt 0:00:00]} Rxc1+ {[%emt 0:00:37]} 25. Qxc1 {[%emt 0:00:01]} Nf6 {[%emt 0:00:11]} 26. h6+ {[%emt 0:00:21]} Kh8 {[%emt 0:00:15]} (26... Kg8 $16) 27. e5 {[%emt 0:00:27]} (27. d5 $18) 27... dxe5 $16 {[%emt 0:00:54]} 28. Nxe5 {[%emt 0:01:40]} Nbd5 {[%emt 0:00:03]} 29. Qc5 {[%emt 0:00:26]} Kg8 {[%emt 0:00:51]} 30. Nc4 {[%emt 0:00:06] White is much more active.} Qxc5 {[%emt 0:00:47]} ({Black should try} 30... Qc7) 31. dxc5 {[%emt 0:00:00]} Kf8 {[%emt 0:00:49]} 32. Nxa5 {[%emt 0:00:03]} Bc8 {[%emt 0:00:02]} (32... Ba8 $16 33. Nc4 Ng8) 33. Nc4 {[%emt 0:00:07][%cal Ba5c4,Bc4d6,Bd6c8,Bc8a7][%mdl 32] Black must now prevent Nd6.} Ke7 {[%emt 0:00:04]} (33... Nc7 {is a better defense.} 34. Nd6 Ba6) 34. Nd6 $18 {[%emt 0:00:24]} Bd7 {[%emt 0:00:02]} 35. Nge4 {[%emt 0:00:02]} Bxb5 {[%emt 0:00:59]} 36. axb5 {[%emt 0:00:06] And now Nxf6 would win. KNN-KNN} Nd7 {[%emt 0:00:00]} 37. Nc8+ {[%emt 0:01:16]} Kd8 {[%emt 0:00:02]} 38. Na7 {[%emt 0:00:13]} f6 {[%emt 0:00:55]} 39. b6 {[%emt 0:00:06][%cal Bb5b6,Bb6b7][%mdl 32] Threatens to win with Nc6+.} Ne7 {[%emt 0:00:08] Prevents Nc6+} (39... Nxc5 40. Nxc5 Nxb6 41. Nc6+ Kc7) 40. b7 {[%emt 0:00:52] Strongly threatening c6.} Kc7 {[%emt 0:00:04] [#]} 41. c6 $1 {[%emt 0:00:01][%mdl 512] Weighted Error Value: White=0.12 (very precise) /Black=0.31} 1-0

[Event "ChessKid Cup Div-II 2023"]
[Site "Online"]
[Date "2023.05.23"]
[Round "51.2"]
[White "Le, Tuan Minh"]
[Black "Rasulov, Vugar"]
[Result "1/2-1/2"]
[ECO "D43"]
[WhiteElo "2542"]
[BlackElo "2523"]
[Annotator "TA"]
[PlyCount "98"]
[EventDate "2023.05.21"]
[EventType "k.o."]
[EventCountry "NET"]
[SourceTitle "playchess.com"]
[Source "ChessBase"]
[SourceQuality "1"]
[TimeControl "900+3"]

{[%evp 16,98,13,21,21,6,41,37,35,0,0,0,4,6,9,0,5,2,10,6,7,9,7,0,7,0,15,15,34,27,38,14,33,0,24,26,25,20,32,0,28,14,22,28,37,0,37,0,52,4,33,21,25,21,16,18,25,28,34,32,31,33,29,34,84,62,66,67,66,56,49,47,51,8,17,23,217,112,104,0,157,0,102,0,161]} 1. d4 {[%emt 0:00:03]} Nf6 {[%emt 0:00:30]} 2. Nf3 {[%emt 0:00:29]} d5 {[%emt 0:00:01]} 3. c4 {[%emt 0:00:04]} e6 {[%emt 0:00:03]} 4. Nc3 {[%emt 0:00:01]} c6 {[%emt 0:00:09]} 5. Bg5 {[%emt 0:00:03]} h6 {[%emt 0:00:05]} 6. Bxf6 {[%emt 0:00:12]} Qxf6 {[%emt 0:00:01]} 7. Qb3 {[%emt 0:00:02]} dxc4 {[%emt 0:00:12]} 8. Qxc4 {[%emt 0:00:02]} Nd7 {[%emt 0:00:00]} 9. Rd1 {[%emt 0:00:25]} Qe7 {[%emt 0:00:19] D43: Semi-Slav: 5 Bg5 h6.} 10. g3 {[%emt 0:00:19] [#]} Nb6 $146 {[%emt 0:00:29]} ({Predecessor:} 10... Qb4 11. Qxb4 Bxb4 12. a3 Be7 13. Bg2 O-O 14. O-O Rd8 15. Rc1 Nb6 16. Rfd1 Bd7 17. Nd2 {½-½ Rausis,I (2578)-Loetscher,R (2414) Riga Tech op 4th 2014 (3)}) 11. Qb3 {[%emt 0:00:04]} Qb4 {[%emt 0:00:03] White is slightly better.} 12. Qxb4 {[%emt 0:00:25]} Bxb4 {[%emt 0:00:00]} 13. a3 {[%emt 0:00:02]} Be7 {[%emt 0:00:03]} 14. e3 {[%emt 0:00:14]} O-O {[%emt 0:00:03]} 15. Be2 {[%emt 0:00:15]} Rd8 {[%emt 0:00:05]} 16. O-O {[%emt 0:00:03]} Nd5 {[%emt 0:00:22]} 17. Rc1 {[%emt 0:00:07]} Bd7 {[%emt 0:00:32]} 18. Ne4 {[%emt 0:00:11]} Be8 {[%emt 0:00:46]} 19. Rfd1 {[%emt 0:00:49]} a5 {[%emt 0:00:12]} 20. Nc5 {[%emt 0:00:10]} Ra7 {[%emt 0:01:15]} (20... b6 $5 {[%cal Rb6c5]} 21. Ne4 Rac8 $11) 21. Ne5 {[%emt 0:00:09][%cal Bf3e5,Be5d3,Bd3c5][%mdl 32]} Bd6 {[%emt 0:00:09]} 22. Bf3 {[%emt 0:00:18]} Kf8 {[%emt 0:00:11]} 23. Kg2 {[%emt 0:01:01]} Ke7 {[%emt 0:00:04]} (23... Bxe5 {simplifies} 24. dxe5 b6 25. Ne4 c5) 24. h4 {[%emt 0:00:00]} Nb6 {[%emt 0:00:44]} 25. Ned3 {[%emt 0:00:10]} Nd7 {[%emt 0:00:25]} 26. Nxd7 {[%emt 0:00:51]} Bxd7 {[%emt 0:00:00]} 27. Nc5 {[%emt 0:00:00]} Bc8 {[%emt 0:00:11]} 28. Na4 {[%emt 0:00:07]} Bc7 {[%emt 0:00:16]} 29. Nc3 {[%emt 0:00:04][%cal Oc3b5] Nb5! would be deadly.} Bb8 {[%emt 0:00:23]} 30. Na4 {[%emt 0:00:10]} Bc7 {[%emt 0:01:01]} 31. Nc3 {[%emt 0:00:04][%cal Oc3b5] aiming for Nb5!} Rd7 {[%emt 0:00:47]} (31... Bb8 $11) 32. e4 {[%emt 0:01:14]} (32. Be2 $14) 32... Ra6 {[%emt 0:00:08]} 33. d5 {[%emt 0:00:03]} Be5 {[%emt 0:01:07]} 34. Na4 {[%emt 0:00:06] Strongly threatening Nc5.} Rd8 $1 {[%emt 0:00:10]} ({Don't take} 34... exd5 35. exd5 Rd8 36. Re1 $16 (36. dxc6 Rxd1 37. Rxd1 bxc6 $11)) 35. Be2 {[%emt 0:00:02]} Ra7 {[%emt 0:00:46][%cal Re6d5]} 36. f4 {[%emt 0:00:09]} Bb8 {[%emt 0:00:19][%cal Re6d5]} 37. Nb6 {[%emt 0:00:19]} exd5 {[%emt 0:00:24]} 38. Nxc8+ {[%emt 0:00:16]} Rxc8 {[%emt 0:00:01]} 39. exd5 {[%emt 0:00:01]} a4 {[%emt 0:00:21]} ({Black should try} 39... Bd6 $14) 40. Bg4 {[%emt 0:00:24] White is more active.} Rd8 {[%emt 0:00:29]} 41. dxc6 {[%emt 0:00:04]} bxc6 {[%emt 0:00:13]} 42. Rxd8 {[%emt 0:00:17]} Kxd8 {[%emt 0:00:00]} 43. Rxc6 $14 {[%emt 0:00:01][%mdl 4096] [#] Endgame Black must now prevent Rc8+. KRB-KRB} Rb7 {[%emt 0:00:02]} 44. Rc8+ {[%emt 0:00:24]} Ke7 {[%emt 0:00:02]} 45. Rc2 {[%emt 0:00:00]} Ba7 $2 {[%emt 0:00:19]} (45... g5 $1 $11) 46. Bf3 {[%emt 0:00:02]} (46. Bc8 $18 Rb8 47. Rc7+ Kf6 48. Rxa7 Rxc8 49. Rxa4 (49. Ra6+ Ke7 $16)) 46... Rd7 $16 {[%emt 0:00:07]} 47. Bg4 {[%emt 0:00:08]} (47. Bc6 $142 Rd4 48. Bb5) 47... Rb7 {[%emt 0:00:11]} 48. Bf3 {[%emt 0:00:00]} ({Better is} 48. Bc8 Rb8 49. Rc7+ Kf8 50. Rxa7 Rxc8 51. Rxa4) 48... Rd7 {[%emt 0:00:02]} 49. Bg4 {[%emt 0:00:02]} (49. Bc6 $16 Rd4 50. Bb5) 49... Rb7 {[%emt 0:00:01] Weighted Error Value: White=0.20 (precise) /Black=0.15 (very precise)} 1/2-1/2

[Event "ChessKid Cup Div-II 2023"]
[Site "Online"]
[Date "2023.05.23"]
[Round "51.2"]
[White "Bharath Subramaniyam H"]
[Black "Andreikin, Dmitry"]
[Result "1/2-1/2"]
[ECO "A48"]
[WhiteElo "2517"]
[BlackElo "2729"]
[Annotator "TA"]
[PlyCount "115"]
[EventDate "2023.05.21"]
[EventType "k.o."]
[EventCountry "NET"]
[SourceTitle "playchess.com"]
[Source "ChessBase"]
[SourceQuality "1"]
[TimeControl "900+3"]

{[%evp 9,115,0,7,0,26,-2,27,9,21,16,16,8,13,19,26,0,15,22,20,18,22,23,32,0,0,-37,-11,-15,0,-16,0,0,0,0,16,-8,-20,-17,0,0,0,0,0,0,0,0,0,0,0,0,0,0,0,0,0,0,0,0,0,0,0,0,0,-18,70,67,129,-26,-26,-26,-26,-26,-26,-26,-26,-117,-26,-26,-18,-10,0,0,0,0,0,0,0,0,0,0,0,0,0,0,0,0,0,0,0,0,0,0,0,0,0,0,0,0]} 1. d4 {[%emt 0:00:05]} Nf6 {[%emt 0:00:13]} 2. Bf4 {[%emt 0:00:01]} c5 {[%emt 0:00:10]} 3. e3 {[%emt 0:00:02]} g6 {[%emt 0:00:03]} 4. Nf3 {[%emt 0:00:12]} Bg7 {[%emt 0:00:03]} 5. Be2 {[%emt 0:00:02]} d6 {[%emt 0:00:11]} 6. h3 {[%emt 0:00:07] A48: 1 d4 Nf6 2 Nf3 g6: Torre, London and Colle Systems.} Qb6 {[%emt 0:00:34]} 7. Qc1 {[%emt 0:00:38]} Nd5 {[%emt 0:01:03][%cal Rc5d4]} 8. Bh2 {[%emt 0:00:51] White has an edge.} cxd4 {[%emt 0:00:09]} 9. exd4 {[%emt 0:00:06]} Nc6 {[%emt 0:00:01]} 10. c3 {[%emt 0:00:34]} Bf5 {[%emt 0:00:18][%cal Og7h6]} 11. Na3 {[%emt 0:00:23][%cal Bb1a3,Ba3c4,Bc4e3][%mdl 32]} Rc8 {[%emt 0:00:57][%cal Rc6d4] [#] Threatens to win with ...Nxd4!} 12. Nc4 {[%emt 0:00:32]} Qd8 {[%emt 0:00:03]} 13. O-O {[%emt 0:00:09]} O-O {[%emt 0:00:02] [#]} 14. a4 $146 {[%emt 0:00:48]} ({Predecessor:} 14. Qd2 a6 15. Rfe1 b5 16. Ne3 Bh6 17. Bd1 Na5 18. Bb3 Nc4 19. Bxc4 bxc4 20. Qd1 Nxe3 21. fxe3 {0-1 Avron,D (2036)-Gharamian,T (2239) Bethune op-A 23th 2002 (4)}) 14... Nb6 {[%emt 0:00:08]} 15. Ne3 {[%emt 0:00:32]} Be6 {[%emt 0:00:37][%cal Oc6d4]} 16. Qd1 {[%emt 0:01:15] d5 would be deadly.} (16. a5 $5 Nd5 $8 17. Nc4 $11) 16... Na5 {[%emt 0:00:04]} 17. Ra3 {[%emt 0:02:19][%cal Ba1a3,Ba3b3,Bb3b5][%mdl 32]} Nbc4 {[%emt 0:00:38]} 18. Nxc4 {[%emt 0:00:04]} Nxc4 {[%emt 0:00:00]} 19. Rb3 {[%emt 0:01:14]} (19. d5 $5 {[%cal Re2c4]} Bd7 20. Bxc4 Rxc4 21. Nd2 $11) 19... Bd5 {[%emt 0:01:10]} (19... Na5 $5 {[%cal Re6b3]} 20. Rb4 Bd5 $11) 20. Rb5 {[%emt 0:00:08]} e6 {[%emt 0:00:04]} 21. Nd2 $1 {[%emt 0:00:18]} a6 {[%emt 0:00:48]} 22. Rb4 {[%emt 0:00:55][%cal Rb4c4]} (22. Nxc4 $5 {[%cal Rb5d5]} axb5 23. Nxd6 $11) 22... Na5 {[%emt 0:00:17]} (22... Qg5 {seems wilder.} 23. Nf3 Qe7 24. Nd2 Na5) 23. Bf3 {[%emt 0:00:33]} Bxf3 {[%emt 0:00:48]} 24. Qxf3 {[%emt 0:00:02]} d5 {[%emt 0:00:02]} 25. Nb3 {[%emt 0:00:24]} Nxb3 {[%emt 0:00:40]} 26. Rxb3 {[%emt 0:00:01]} Qd7 {[%emt 0:00:00]} 27. a5 {[%emt 0:00:14]} Rc4 {[%emt 0:00:02]} 28. Qg3 {[%emt 0:00:45]} Rd8 {[%emt 0:00:26]} 29. Rb6 {[%emt 0:00:21]} Bf8 {[%emt 0:00:17]} 30. Qg5 {[%emt 0:00:18][%cal Ob6b7]} Be7 {[%emt 0:00:32]} 31. Qh6 {[%emt 0:00:04]} Bf8 {[%emt 0:00:39]} 32. Qg5 {[%emt 0:00:03][%cal Ob6b7]} Be7 {[%emt 0:00:01]} 33. Qh6 {[%emt 0:00:21]} Ra4 {[%emt 0:00:38]} 34. Be5 {[%emt 0:00:13][%csl Ge5][%cal Rh6g7]} f6 {[%emt 0:00:20]} 35. Bg3 {[%emt 0:00:01]} Re8 {[%emt 0:00:37]} 36. Re1 {[%emt 0:00:14]} Bf8 {[%emt 0:00:01]} (36... Bd8 $1 $11 37. Rd6 Qf7) 37. Qf4 $1 $14 {[%emt 0:00:08] White is much more active.} Kf7 {[%emt 0:00:23]} (37... Rxa5 $14 38. Qxf6 Rb5 39. Rxb5 (39. Rbxe6 Rxe6 40. Rxe6 Bg7 $11) (39. Be5 Bg7 $15) 39... axb5) 38. Qc7 $2 {[%emt 0:00:20]} ({White should play} 38. b4 $16) 38... Qxc7 $11 {[%emt 0:00:36]} 39. Bxc7 {[%emt 0:00:00]} Rxa5 {[%emt 0:00:27]} 40. Rxb7 {[%emt 0:00:17]} Re7 {[%emt 0:00:37]} 41. Bxa5 {[%emt 0:00:25]} Rxb7 {[%emt 0:00:00][%mdl 4096] Endgame KRB-KRB} 42. Rb1 {[%emt 0:00:03] [#]} (42. b4 $11 {remains equal.}) 42... Bd6 {[%emt 0:00:15]} ({Black should try} 42... Rb3 $1 $17 43. Kf1 Ba3) 43. Kf1 {[%emt 0:00:03]} e5 {[%emt 0:00:37]} 44. dxe5 {[%emt 0:00:10] The position is equal.} Bxe5 {[%emt 0:00:01]} 45. Bb4 $1 {[%emt 0:00:11]} d4 {[%emt 0:00:01] Strongly threatening ...dxc3.} 46. Ra1 {[%emt 0:00:08]} dxc3 {[%emt 0:00:27]} 47. Bxc3 {[%emt 0:00:00]} Bxc3 {[%emt 0:00:03]} 48. bxc3 {[%emt 0:00:00] KR-KR} Rb3 {[%emt 0:00:02]} 49. Rxa6 {[%emt 0:00:02]} Rxc3 {[%emt 0:00:01]} 50. Ra7+ {[%emt 0:00:01]} Kg8 {[%emt 0:00:01]} 51. g3 {[%emt 0:00:01]} Rb3 {[%emt 0:00:02]} 52. Kg2 {[%emt 0:00:01]} Rc3 {[%emt 0:00:00]} 53. Rb7 {[%emt 0:00:01]} Ra3 {[%emt 0:00:01]} 54. Rc7 {[%emt 0:00:00]} Rb3 {[%emt 0:00:01]} 55. Rd7 {[%emt 0:00:01]} Ra3 {[%emt 0:00:01]} 56. Rc7 {[%emt 0:00:01]} Rb3 {[%emt 0:00:01]} 57. Rd7 {[%emt 0:00:01]} Ra3 {[%emt 0:00:00]} 58. Rc7 {[%emt 0:00:00] Weighted Error Value: White=0.14 (very precise) /Black=0.11 (very precise)} 1/2-1/2